bitfinex-derivatives/quotes_BTCF0:USTF0_20250127
["timestamp","ask_amount","ask_price","bid_price","bid_amount"]
[1737966199471,0.03023218,99232.0,99224.0,0.3608]
[1737966199971,0.3608,99231.0,99222.0,0.0001512]
[1737966200478,0.201656,99223.0,99222.0,0.0001512]
[1737966201070,1.5,99223.0,99222.0,0.0001512]
[1737966201276,0.201644,99229.0,99222.0,0.0001512]
[1737966201969,0.005,99231.0,99227.0,0.201647]
[1737966202169,0.005,99231.0,99228.0,0.3608]
[1737966202382,0.005,99231.0,99229.0,0.201643]
[1737966203664,0.03023218,99232.0,99228.0,0.3608]
[1737966203975,0.14976721,99241.0,99228.0,0.3608]
[1737966204271,0.14976721,99241.0,99222.0,0.0021512]
[1737966204272,0.18592019,99240.0,99222.0,0.0021512]
[1737966204571,0.18592019,99240.0,99228.0,0.3608]
[1737966204771,0.201637,99233.0,99228.0,0.3608]
[1737966205070,0.201635,99234.0,99228.0,0.3608]
[1737966205270,0.14976721,99241.0,99228.0,0.3608]
[1737966205476,0.14976721,99241.0,99240.0,0.3608]
[1737966206380,0.12058768,99241.0,99240.0,0.3608]
[1737966206677,0.12158768,99241.0,99240.0,0.3608]
[1737966207676,0.201634,99234.0,99232.0,0.3608]
[1737966207867,0.12158768,99241.0,99222.0,0.3609512]
[1737966208072,0.201638,99233.0,99222.0,0.3609512]
[1737966208668,0.201638,99233.0,99222.0,0.5626082]
[1737966208869,0.201645,99229.0,99222.0,0.5626082]
[1737966209475,0.12043648,99238.0,99222.0,0.3609512]
[1737966209676,0.20163,99237.0,99226.0,0.201649]
[1737966209869,0.12043648,99238.0,99222.0,0.3609512]
[1737966209870,0.201644,99230.0,99222.0,0.3609512]
[1737966210869,0.12043648,99238.0,99237.0,0.201628]
[1737966211073,0.12043648,99238.0,99237.0,0.705468]
[1737966211669,0.12143648,99238.0,99237.0,0.705468]
[1737966212376,0.12443648,99238.0,99237.0,0.705468]
[1737966213974,0.12443648,99238.0,99237.0,0.50384]
[1737966214274,0.12143648,99238.0,99237.0,0.50384]
[1737966214578,0.002,99238.0,99237.0,0.50384]
[1737966214876,0.003,99238.0,99237.0,0.50384]
[1737966215472,0.003,99238.0,99237.0,0.62154]
[1737966216982,0.14961601,99257.0,99237.0,0.62154]
[1737966217282,0.14961601,99257.0,99250.0,0.562402]
[1737966218079,0.12043648,99258.0,99250.0,0.3608]
[1737966218283,0.12043648,99258.0,99256.0,0.562389]
[1737966220784,0.12043648,99258.0,99257.0,0.14288]
[1737966220785,0.12143648,99258.0,99257.0,0.14288]
[1737966220977,0.12243648,99258.0,99257.0,0.14288]
[1737966221177,0.12143648,99258.0,99257.0,0.14288]
[1737966221378,0.001,99258.0,99257.0,0.14288]
[1737966221682,0.0001512,99260.0,99256.0,0.572909]
[1737966221884,0.0001512,99260.0,99257.0,0.14688]
[1737966222690,0.0001512,99260.0,99257.0,0.14988]
[1737966222880,0.201585,99258.0,99257.0,0.007]
[1737966223484,0.201585,99258.0,99257.0,0.003]
[1737966223679,0.201585,99258.0,99257.0,0.008]
[1737966223883,0.18305084,99258.0,99257.0,0.008]
[1737966224085,0.30715084,99258.0,99257.0,0.005]
[1737966224284,0.201606,99248.0,99247.0,0.0001512]
[1737966224683,0.03002043,99258.0,99247.0,0.0001512]
[1737966224883,0.23160543,99258.0,99257.0,0.003]
[1737966225182,0.23160543,99258.0,99257.0,0.005]
[1737966225382,1.73160543,99258.0,99257.0,0.002]
[1737966225788,0.201604,99249.0,99247.0,0.0081512]
[1737966227100,0.201604,99249.0,99247.0,0.0021512]
[1737966227483,0.22111745,99249.0,99247.0,0.0001512]
[1737966227683,0.22111745,99249.0,99247.0,0.0051512]
[1737966228483,0.22111745,99249.0,99247.0,0.0081512]
[1737966231389,0.01951345,99249.0,99247.0,0.0081512]
[1737966231592,0.201589,99257.0,99253.0,0.201594]
[1737966231785,0.12043648,99259.0,99258.0,0.201585]
[1737966232690,0.12043648,99259.0,99258.0,0.24266874]
[1737966232991,0.00092,99284.0,99258.0,0.24266874]
[1737966232992,0.17953921,99270.0,99258.0,0.3608]
[1737966233184,0.17953921,99270.0,99269.0,0.3608]
[1737966234399,0.18053921,99270.0,99269.0,0.3608]
[1737966235585,0.38210021,99270.0,99269.0,0.3608]
[1737966235888,0.18053921,99270.0,99269.0,0.3608]
[1737966236588,0.001,99270.0,99269.0,0.3608]
[1737966236991,0.001,99270.0,99269.0,0.50344]
[1737966237188,1.65055978,99298.0,99269.0,0.50344]
[1737966237387,1.65055978,99298.0,99269.0,0.3608]
[1737966237388,0.18616135,99290.0,99269.0,0.3608]
[1737966237588,0.18616135,99290.0,99269.0,0.50344]
[1737966237784,0.18616135,99280.0,99269.0,0.50344]
[1737966237992,0.201545,99278.0,99269.0,0.3608]
[1737966238293,0.201552,99275.0,99269.0,0.3608]
[1737966238488,0.201545,99278.0,99269.0,0.3608]
[1737966238687,0.201559,99272.0,99269.0,0.3618]
[1737966238887,1.701559,99272.0,99269.0,0.3618]
[1737966239899,0.201561,99270.0,99269.0,0.3618]
[1737966240799,0.201573,99264.0,99263.0,0.1426]
[1737966241985,0.201573,99264.0,99263.0,0.1436]
[1737966242699,0.19521671,99264.0,99263.0,0.1436]
[1737966243292,0.19521671,99264.0,99263.0,0.001]
[1737966243492,0.1212,99269.0,99250.0,0.3608]
[1737966243493,0.482,99269.0,99250.0,0.33991351]
[1737966243697,0.482,99269.0,99248.0,0.00151136]
[1737966243698,0.201603,99249.0,99248.0,0.00151136]
[1737966244294,1.701603,99249.0,99248.0,0.00151136]
[1737966244893,0.201622,99240.0,99239.0,0.00015111]
[1737966245802,0.22606951,99240.0,99239.0,0.00015111]
[1737966246497,0.201636,99233.0,99232.0,0.23037789]
[1737966246697,0.201636,99233.0,99232.0,0.21197789]
[1737966246698,0.562436,99233.0,99232.0,0.21197789]
[1737966246900,0.562436,99233.0,99217.0,0.34426502]
[1737966246901,0.201666,99218.0,99217.0,0.34426502]
[1737966247210,0.201666,99218.0,99217.0,0.26235967]
[1737966247211,0.562466,99218.0,99217.0,0.26235967]
[1737966247400,0.201683,99210.0,99209.0,0.2378333]
[1737966247597,0.201683,99210.0,99209.0,0.13894758]
[1737966247598,0.562483,99210.0,99209.0,0.13894758]
[1737966247804,0.3608,99210.0,99202.0,0.29729162]
[1737966247999,0.201697,99203.0,99202.0,0.29729162]
[1737966249607,0.201697,99203.0,99202.0,0.29829162]
[1737966250403,0.201697,99203.0,99202.0,0.001]
[1737966250709,0.201697,99203.0,99202.0,0.002]
[1737966251100,0.201697,99203.0,99202.0,0.001]
[1737966251295,0.201697,99203.0,99202.0,0.002]
[1737966251704,0.201697,99203.0,99202.0,0.001]
[1737966252000,0.201697,99203.0,99202.0,0.002]
[1737966253211,0.02511949,99210.0,99202.0,0.002]
[1737966253410,0.20180011,99227.0,99219.0,0.201663]
[1737966253708,0.00015111,99227.0,99219.0,0.201663]
[1737966254206,0.15055978,99224.0,99223.0,0.201656]
[1737966254406,0.3575,99253.0,99220.0,0.26466]
[1737966254407,0.12410765,99260.0,99222.0,0.3608]
[1737966254609,0.12410765,99260.0,99254.0,0.3608]
[1737966254804,0.201575,99263.0,99254.0,0.3608]
[1737966255007,0.12410765,99270.0,99254.0,0.3608]
[1737966255204,0.12410765,99270.0,99257.0,0.17134498]
[1737966255410,0.41870087,99271.0,99262.0,0.3608]
[1737966255612,0.201566,99268.0,99262.0,0.3608]
[1737966256006,0.12410765,99272.0,99262.0,0.3608]
[1737966256315,0.201564,99269.0,99262.0,0.3608]
[1737966257214,0.00015111,99273.0,99262.0,0.3608]
[1737966257713,0.00015111,99273.0,99272.0,0.3608]
[1737966258810,0.00215111,99273.0,99272.0,0.3608]
[1737966260318,0.02519383,99287.0,99283.0,0.201534]
[1737966260513,0.201506,99298.0,99286.0,0.3608]
[1737966261216,0.201517,99292.0,99286.0,0.3608]
[1737966261422,0.002,99287.0,99286.0,0.3608]
[1737966261619,0.008,99287.0,99286.0,0.3608]
[1737966262012,0.002,99287.0,99286.0,0.3608]
[1737966262216,0.002,99287.0,99286.0,0.3618]
[1737966263319,0.22581525,99288.0,99286.0,0.3618]
[1737966263715,0.22581525,99288.0,99286.0,0.001]
[1737966263716,1.5,99287.0,99286.0,0.001]
[1737966264508,1.502,99287.0,99286.0,0.001]
[1737966264717,1.506,99287.0,99282.0,0.00015111]
[1737966265021,0.201534,99283.0,99264.0,0.3608]
[1737966265221,0.1861593,99274.0,99264.0,0.3608]
[1737966265411,0.201569,99266.0,99264.0,0.3608]
[1737966267915,0.2262658,99266.0,99264.0,0.3608]
[1737966268224,0.2262658,99266.0,99226.0,0.3608]
[1737966268225,0.050394,99263.0,99226.0,0.3608]
[1737966268424,0.201628,99237.0,99226.0,0.3608]
[1737966268625,0.3608,99241.0,99226.0,0.3608]
[1737966268818,0.201648,99227.0,99226.0,0.3608]
[1737966269416,0.201648,99227.0,99226.0,0.32606733]
[1737966269417,1.72627051,99227.0,99226.0,0.32606733]
[1737966269716,0.201666,99218.0,99217.0,0.00015111]
[1737966272220,0.203666,99218.0,99217.0,0.00015111]
[1737966272916,0.202666,99218.0,99217.0,0.00015111]
[1737966275021,0.001,99218.0,99217.0,0.00015111]
[1737966276026,0.3608,99218.0,99217.0,0.00315111]
[1737966277832,0.3608,99218.0,99217.0,0.00415111]
[1737966278221,0.3608,99218.0,99217.0,0.00115111]
[1737966278531,0.3608,99218.0,99217.0,0.00015111]
[1737966278729,0.00092,99227.0,99217.0,0.36195111]
[1737966278931,0.22384895,99233.0,99223.0,0.201655]
[1737966279136,0.201636,99233.0,99224.0,0.1213]
[1737966280131,0.203636,99233.0,99224.0,0.1213]
[1737966281232,0.3608,99229.0,99218.0,0.1214]
[1737966281423,0.201664,99219.0,99218.0,0.1214]
[1737966281619,0.201664,99219.0,99217.0,0.00015111]
[1737966282132,0.3608,99218.0,99217.0,0.00015111]
[1737966283027,0.201664,99219.0,99217.0,0.00015111]
[1737966283226,0.1861593,99228.0,99217.0,0.00015111]
[1737966283626,0.20818393,99228.0,99217.0,0.00215111]
[1737966283829,0.201645,99229.0,99217.0,0.00215111]
[1737966284131,0.08982015,99233.0,99232.0,0.201638]
[1737966284527,0.08982015,99233.0,99232.0,0.501638]
[1737966284836,0.17969437,99254.0,99252.0,0.201596]
[1737966285337,0.38128937,99254.0,99247.0,0.1418]
[1737966286323,0.201595,99253.0,99252.0,0.001]
[1737966287833,0.201605,99248.0,99247.0,0.1418]
[1737966288029,0.201605,99248.0,99247.0,0.1428]
[1737966288625,0.201605,99248.0,99247.0,0.1418]
[1737966289036,1.701605,99248.0,99247.0,0.1418]
[1737966289237,1.705605,99248.0,99247.0,0.1418]
[1737966289437,1.504,99248.0,99241.0,0.00015111]
[1737966289635,1.504,99248.0,99218.0,0.14168]
[1737966289636,0.3608,99242.0,99218.0,0.14168]
[1737966289838,0.3608,99230.0,99209.0,0.2457]
[1737966290034,0.1861593,99220.0,99216.0,0.201669]
[1737966290242,0.201665,99219.0,99216.0,0.201669]
[1737966291351,0.22356902,99219.0,99216.0,0.201669]
[1737966291649,0.22356902,99219.0,99217.0,0.201666]
[1737966291650,0.02190402,99219.0,99217.0,0.201666]
[1737966291850,0.20179911,99227.0,99218.0,0.201665]
[1737966292047,0.20179911,99227.0,99216.0,0.001]
[1737966292048,0.00015111,99227.0,99222.0,0.201657]
[1737966292250,0.00015111,99227.0,99225.0,0.201651]
[1737966293347,0.201626,99238.0,99233.0,0.201635]
[1737966293553,0.20161,99246.0,99242.0,0.201617]
[1737966294146,0.20161,99246.0,99243.0,0.201615]
[1737966295246,0.20361,99246.0,99243.0,0.201615]
[1737966295445,0.20861,99246.0,99243.0,0.201615]
[1737966295755,0.20861,99246.0,99235.0,0.00015111]
[1737966295756,0.201627,99238.0,99235.0,0.00015111]
[1737966297050,0.20861,99246.0,99235.0,0.20178211]
[1737966297249,0.007,99246.0,99237.0,0.201628]
[1737966297457,0.201613,99245.0,99237.0,0.201628]
[1737966297647,0.001,99238.0,99237.0,0.201628]
[1737966297950,0.004,99238.0,99237.0,0.201628]
[1737966298352,0.003,99238.0,99237.0,0.201628]
[1737966298556,0.201617,99243.0,99237.0,0.201628]
[1737966299061,0.005,99245.0,99242.0,0.201616]
[1737966300252,0.005,99245.0,99242.0,0.562416]
[1737966300454,0.005,99245.0,99242.0,0.3608]
[1737966300645,0.201607,99248.0,99242.0,0.3608]
[1737966301045,0.002,99245.0,99242.0,0.3608]
[1737966301549,0.14990898,99258.0,99253.0,0.201595]
[1737966301745,0.3608,99296.0,99253.0,0.3608]
[1737966301954,0.3608,99296.0,99283.0,0.3608]
[1737966302456,0.38050481,99296.0,99283.0,0.3608]
[1737966302848,0.201532,99285.0,99283.0,0.3608]
[1737966303048,0.18299805,99285.0,99283.0,0.3608]
[1737966304254,0.38050481,99296.0,99280.0,0.00015111]
[1737966304255,0.201538,99281.0,99280.0,0.00015111]
[1737966304552,0.20158,99261.0,99254.0,0.201592]
[1737966304752,0.4226986,99290.0,99253.0,0.36231129]
[1737966304753,0.201593,99255.0,99253.0,0.00151129]
[1737966304959,1.5,99254.0,99253.0,0.00151129]
[1737966305656,0.201593,99255.0,99253.0,0.00151129]
[1737966305860,0.22081859,99255.0,99253.0,0.00151129]
[1737966306046,0.22081859,99255.0,99244.0,0.00015111]
[1737966306047,0.201654,99225.0,99224.0,0.00151175]
[1737966306561,0.201635,99234.0,99224.0,0.00151175]
[1737966306764,0.1221,99236.0,99224.0,0.00151175]
[1737966307054,1.5,99235.0,99224.0,0.00151175]
[1737966307254,0.00015111,99240.0,99224.0,0.00151175]
[1737966307556,0.00015111,99240.0,99236.0,0.20163]
[1737966308153,0.01987735,99240.0,99238.0,0.201624]
[1737966308361,0.00015111,99240.0,99238.0,0.201624]
[1737966308559,0.00215111,99240.0,99238.0,0.201624]
[1737966309554,0.00215111,99240.0,99239.0,0.3608]
[1737966310151,0.01904774,99261.0,99239.0,0.6608]
[1737966310355,0.201568,99267.0,99258.0,0.201584]
[1737966310560,0.1176,99269.0,99255.0,0.50204]
[1737966311053,0.20157,99266.0,99255.0,0.50204]
[1737966311259,0.201589,99257.0,99255.0,0.50204]
[1737966312163,0.001,99267.0,99255.0,0.50204]
[1737966312459,0.01983403,99272.0,99255.0,0.50204]
[1737966312653,0.01983403,99272.0,99265.0,0.3608]
[1737966313359,0.00015111,99272.0,99270.0,0.201559]
[1737966313750,0.01903215,99277.0,99270.0,0.201559]
[1737966313950,0.20154,99281.0,99271.0,0.201557]
[1737966314158,0.201552,99275.0,99265.0,0.3608]
[1737966314460,0.201554,99274.0,99265.0,0.3608]
[1737966314664,0.1861593,99281.0,99265.0,0.3608]
[1737966314870,0.201559,99271.0,99265.0,0.3608]
[1737966315854,0.001,99274.0,99265.0,0.3608]
[1737966316055,0.201586,99258.0,99256.0,0.14112]
[1737966317765,0.20157,99266.0,99257.0,0.201586]
[1737966318058,0.01915836,99266.0,99265.0,0.20157]
[1737966318262,0.001,99271.0,99268.0,0.201564]
[1737966318566,0.001,99271.0,99257.0,0.1257]
[1737966318567,0.001,99271.0,99269.0,0.201561]
[1737966318750,0.201542,99280.0,99271.0,0.201557]
[1737966319064,0.201547,99277.0,99272.0,0.201556]
[1737966319259,0.1861593,99282.0,99276.0,0.201547]
[1737966319459,0.1861593,99282.0,99265.0,0.004]
[1737966319460,0.01999502,99279.0,99275.0,0.20155]
[1737966319656,0.01999502,99279.0,99278.0,0.201545]
[1737966320469,0.01999502,99279.0,99273.0,0.3608]
[1737966320657,0.201546,99278.0,99273.0,0.3608]
[1737966321057,0.201547,99277.0,99273.0,0.3608]
[1737966321463,0.201547,99277.0,99276.0,0.003]
[1737966321957,0.201547,99277.0,99276.0,0.001]
[1737966322157,0.201547,99277.0,99273.0,0.3668]
[1737966322561,0.201552,99275.0,99273.0,0.002]
[1737966322965,0.201552,99275.0,99263.0,0.201574]
[1737966323170,0.01999502,99279.0,99265.0,0.201571]
[1737966323358,0.20157,99266.0,99256.0,0.201588]
[1737966324166,0.20157,99266.0,99257.0,0.201586]
[1737966324367,0.20157,99266.0,99260.0,0.201581]
[1737966324554,1.50092,99278.0,99255.0,0.14096]
[1737966324759,0.00015111,99279.0,99255.0,0.14096]
[1737966324958,0.00015111,99279.0,99264.0,0.562372]
[1737966325255,0.01926047,99279.0,99277.0,0.201546]
[1737966325460,0.00015111,99279.0,99277.0,0.201546]
[1737966326361,0.0191113,99300.0,99298.0,0.201503]
[1737966326562,0.201487,99307.0,99298.0,0.201503]
[1737966326770,0.20149,99305.0,99298.0,0.201503]
[1737966327267,0.201486,99307.0,99295.0,0.3608]
[1737966327565,0.201502,99300.0,99295.0,0.3608]
[1737966328163,0.14559624,99308.0,99302.0,0.201495]
[1737966328164,0.01959624,99308.0,99302.0,0.201495]
[1737966328365,0.18039231,99309.0,99302.0,0.201495]
[1737966328560,0.001,99307.0,99302.0,0.201495]
[1737966328961,0.001,99307.0,99303.0,0.201492]
[1737966329764,0.18039231,99324.0,99323.0,0.201453]
[1737966329967,0.1291,99352.0,99323.0,0.3608]
[1737966330168,0.1291,99352.0,99336.0,0.201425]
[1737966330169,0.201402,99349.0,99336.0,0.201425]
[1737966330365,0.201414,99343.0,99337.0,0.11058852]
[1737966330669,0.40967832,99339.0,99337.0,0.11058852]
[1737966332564,0.39214396,99339.0,99337.0,0.11058852]
[1737966333865,1.5,99338.0,99337.0,0.11058852]
[1737966334263,0.19072296,99339.0,99337.0,0.11058852]
[1737966334466,0.19072296,99339.0,99337.0,0.31201152]
[1737966334666,0.001,99339.0,99337.0,0.31201152]
[1737966335059,0.01938743,99342.0,99337.0,0.31201152]
[1737966335264,0.3608,99345.0,99338.0,0.201422]
[1737966336077,0.001,99339.0,99338.0,0.201423]
[1737966337175,0.22585053,100060.0,99339.0,0.050355]
[1737966337176,0.3608,99391.0,99339.0,0.050355]
[1737966337472,0.4608,99400.0,99378.0,0.201341]
[1737966337662,1.73855475,99388.0,99378.0,0.201341]
[1737966337864,1.73915476,99388.0,99378.0,0.201341]
[1737966338666,1.50060001,99388.0,99385.0,0.201326]
[1737966338870,1.5,99388.0,99387.0,0.3608]
[1737966339068,1.5,99388.0,99387.0,0.33060221]
[1737966339868,1.5,99388.0,99387.0,0.53192521]
[1737966341367,1.502,99388.0,99387.0,0.53192521]
[1737966342276,1.5,99388.0,99387.0,0.53192521]
[1737966345775,0.201309,99394.0,99387.0,0.33060221]
[1737966345979,0.201314,99392.0,99385.0,0.14036]
[1737966346179,0.201328,99385.0,99377.0,0.00015094]
[1737966346369,0.201318,99390.0,99377.0,0.00015094]
[1737966346777,1.49,99384.0,99377.0,0.00015094]
[1737966347074,0.201318,99390.0,99377.0,0.00015094]
[1737966347475,1.49,99389.0,99377.0,0.00015094]
[1737966347675,0.201318,99390.0,99377.0,0.00015094]
[1737966348280,0.201318,99390.0,99379.0,0.201339]
[1737966348979,0.23250212,99390.0,99379.0,0.201339]
[1737966349677,0.25719279,99390.0,99379.0,0.201339]
[1737966349879,0.05587479,99390.0,99377.0,0.00015094]
[1737966350079,0.201325,99387.0,99377.0,0.00015094]
[1737966350274,0.201331,99384.0,99377.0,0.00015094]
[1737966350875,0.24203409,99390.0,99377.0,0.00015094]
[1737966351071,0.201323,99387.0,99377.0,0.00015094]
[1737966351680,0.24103409,99390.0,99377.0,0.00215094]
[1737966351885,0.201342,99378.0,99377.0,0.00215094]
[1737966352080,0.3608,99383.0,99358.0,0.0015097]
[1737966352381,0.3608,99383.0,99362.0,0.3608]
[1737966352581,0.201345,99377.0,99370.0,0.201356]
[1737966352782,0.3608,99383.0,99362.0,0.3608]
[1737966352783,0.1861593,99380.0,99362.0,0.3608]
[1737966352987,0.1861593,99380.0,99362.0,0.562172]
[1737966353283,0.00015035,99381.0,99362.0,0.3608]
[1737966353676,0.20148735,99381.0,99376.0,0.201345]
[1737966354991,0.20148735,99381.0,99377.0,0.201342]
[1737966355283,0.201339,99380.0,99377.0,0.201342]
[1737966355477,0.00015035,99381.0,99376.0,0.001]
[1737966355674,0.201344,99377.0,99376.0,0.001]
[1737966356383,0.201344,99377.0,99376.0,0.002]
[1737966357084,0.201344,99377.0,99376.0,0.003]
[1737966357485,1.71510584,99377.0,99376.0,0.003]
[1737966358080,1.71510584,99377.0,99376.0,0.001]
[1737966358382,0.201372,99363.0,99361.0,0.00015094]
[1737966358696,0.201398,99350.0,99338.0,0.3608]
[1737966358992,0.201398,99350.0,99340.0,0.201418]
[1737966359195,0.201398,99350.0,99338.0,0.3608]
[1737966359196,0.201398,99350.0,99341.0,0.201415]
[1737966359989,0.201383,99358.0,99349.0,0.562199]
[1737966360383,0.00015094,99359.0,99349.0,0.3678]
[1737966360584,0.00015094,99359.0,99356.0,0.201386]
[1737966360889,0.201393,99353.0,99349.0,0.3658]
[1737966361098,0.201397,99351.0,99349.0,0.3668]
[1737966361982,0.201397,99351.0,99340.0,0.20156894]
[1737966361983,0.3608,99351.0,99340.0,0.00015094]
[1737966362281,0.3608,99341.0,99317.0,0.3608]
[1737966362588,0.201455,99323.0,99318.0,0.201462]
[1737966362788,0.1861593,99340.0,99318.0,0.201462]
[1737966362789,0.201451,99324.0,99318.0,0.201462]
[1737966362990,0.201451,99324.0,99317.0,0.3608]
[1737966362991,0.20144,99330.0,99322.0,0.201454]
[1737966363186,0.00060001,99339.0,99317.0,0.3608]
[1737966363397,0.00015102,99336.0,99326.0,0.3608]
[1737966363600,0.00015102,99336.0,99335.0,0.562229]
[1737966364287,0.00015102,99336.0,99326.0,0.562245]
[1737966364497,0.00215102,99336.0,99326.0,0.201445]
[1737966364800,0.00215102,99336.0,99325.0,0.13996]
[1737966365096,0.00215102,99336.0,99332.0,0.201434]
[1737966365487,0.00215102,99336.0,99330.0,0.3608]
[1737966365987,0.00215102,99336.0,99334.0,0.201429]
[1737966366390,0.00015102,99336.0,99334.0,0.201429]
[1737966366601,0.00115102,99336.0,99334.0,0.201429]
[1737966366796,0.00115102,99336.0,99335.0,0.16537436]
[1737966366993,0.125,99369.0,99335.0,0.16537436]
[1737966367297,0.125,99369.0,99364.0,0.201368]
[1737966367491,0.125,99369.0,99345.0,0.3608]
[1737966367492,0.201371,99364.0,99357.0,0.201384]
[1737966367686,0.201363,99368.0,99358.0,0.201381]
[1737966367886,0.125,99369.0,99365.0,0.201366]
[1737966368196,0.14444409,99369.0,99365.0,0.201366]
[1737966368405,0.02044409,99369.0,99367.0,0.201362]
[1737966369004,0.02044409,99369.0,99362.0,0.3608]
[1737966369005,0.02044409,99369.0,99364.0,0.201369]
[1737966369188,0.02044409,99369.0,99362.0,0.3608]
[1737966369593,0.02444409,99369.0,99362.0,0.3608]
[1737966369987,0.01924573,99369.0,99365.0,0.201367]
[1737966370187,0.004,99369.0,99367.0,0.201362]
[1737966370385,0.005,99369.0,99367.0,0.201362]
[1737966370801,0.004,99369.0,99367.0,0.201362]
[1737966371190,0.003,99369.0,99367.0,0.201362]
[1737966371392,0.004,99369.0,99367.0,0.201362]
[1737966373292,0.01020018,99373.0,99363.0,0.3608]
[1737966373596,0.201334,99382.0,99372.0,0.562152]
[1737966373790,0.201334,99382.0,99373.0,0.201351]
[1737966374101,0.201334,99382.0,99374.0,0.201348]
[1737966374897,0.201334,99382.0,99372.0,0.3608]
[1737966374898,0.205334,99382.0,99372.0,0.3608]
[1737966375099,0.004,99382.0,99372.0,0.3608]
[1737966375302,0.101346,99376.0,99372.0,0.3608]
[1737966375801,0.23310428,99386.0,99372.0,0.3608]
[1737966376204,0.201338,99380.0,99372.0,0.3608]
[1737966376899,0.001,99382.0,99372.0,0.3608]
[1737966377104,0.001,99382.0,99374.0,0.201349]
[1737966377295,0.001,99382.0,99372.0,0.3608]
[1737966377296,0.001,99382.0,99375.0,0.201346]
[1737966377491,0.001,99382.0,99380.0,0.3608]
[1737966377698,0.201323,99387.0,99380.0,0.3608]
[1737966378202,0.001,99382.0,99380.0,0.3608]
[1737966380107,0.002,99387.0,99382.0,0.201332]
[1737966380293,0.002,99387.0,99385.0,0.201327]
[1737966381003,0.002,99387.0,99380.0,0.3608]
[1737966381004,0.01951376,99388.0,99387.0,0.201323]
[1737966383402,0.0001502,99388.0,99387.0,0.201323]
[1737966383600,0.0021502,99388.0,99387.0,0.201323]
[1737966383802,0.02201692,99388.0,99387.0,0.201323]
[1737966385007,0.02201692,99388.0,99381.0,0.3608]
[1737966385808,1.49,99387.0,99382.0,0.201333]
[1737966385995,0.02201692,99388.0,99381.0,0.3608]
[1737966386200,0.02201692,99388.0,99386.0,0.201325]
[1737966387208,0.02001692,99388.0,99386.0,0.201325]
[1737966387410,0.02201692,99388.0,99386.0,0.201325]
[1737966387707,0.02201692,99388.0,99381.0,0.562135]
[1737966388009,0.02201692,99388.0,99381.0,0.3608]
[1737966388201,0.02201692,99388.0,99383.0,0.20133]
[1737966388503,0.02201692,99388.0,99384.0,0.201328]
[1737966388704,0.02201692,99388.0,99385.0,0.201326]
[1737966388905,0.02201692,99388.0,99381.0,0.3608]
[1737966389709,0.02201692,99388.0,99381.0,0.562134]
[1737966390911,0.201333,99383.0,99381.0,0.3608]
[1737966391810,0.02201692,99388.0,99381.0,0.3608]
[1737966392108,0.201326,99386.0,99381.0,0.3608]
[1737966392311,0.201328,99385.0,99381.0,0.3608]
[1737966393207,0.02001692,99388.0,99381.0,0.3608]
[1737966393403,0.3608,99383.0,99374.0,0.00015094]
[1737966393715,0.2425,99382.0,99360.0,0.3608]
[1737966394010,0.20135,99374.0,99366.0,0.201364]
[1737966394201,0.20135,99374.0,99368.0,0.562161]
[1737966394707,0.2425,99382.0,99368.0,0.3608]
[1737966394901,0.20136,99369.0,99368.0,0.3608]
[1737966395603,1.49,99381.0,99368.0,0.3608]
[1737966395604,0.201346,99376.0,99368.0,0.3608]
[1737966395803,0.201346,99376.0,99368.0,0.562161]
[1737966396413,0.201346,99376.0,99368.0,0.563161]
[1737966396612,0.01917274,99376.0,99373.0,0.201351]
[1737966396910,0.201321,99389.0,99377.0,0.201343]
[1737966397116,0.20133,99384.0,99378.0,0.04381384]
[1737966397411,0.20133,99384.0,99379.0,0.04345417]
[1737966397612,0.20133,99384.0,99377.0,0.1711525]
[1737966397814,0.20133,99384.0,99378.0,0.04345444]
[1737966398014,0.20133,99384.0,99377.0,0.1711525]
[1737966398209,0.20133,99384.0,99378.0,0.04345284]
[1737966398409,0.20133,99384.0,99377.0,0.1711525]
[1737966399015,0.12010356,99386.0,99378.0,0.04352509]
[1737966399212,0.201334,99382.0,99377.0,0.1711525]
[1737966399819,0.201341,99378.0,99368.0,0.3608]
[1737966400010,0.201356,99371.0,99369.0,0.04316752]
[1737966400319,0.201359,99370.0,99368.0,0.3608]
[1737966400621,0.12378212,99378.0,99368.0,0.3608]
[1737966400914,0.201358,99370.0,99369.0,0.17838317]
[1737966401220,0.201358,99370.0,99369.0,0.18038317]
[1737966402913,0.201358,99370.0,99369.0,0.17938317]
[1737966403215,0.22605706,99370.0,99369.0,0.17938317]
[1737966403418,0.25624725,99370.0,99369.0,0.17938317]
[1737966403623,0.12378212,99379.0,99369.0,0.17938317]
[1737966403808,0.27700702,99382.0,99369.0,0.17938317]
[1737966404118,0.201342,99378.0,99369.0,0.18138317]
[1737966404313,0.201357,99371.0,99369.0,0.18138317]
[1737966405208,0.201357,99371.0,99369.0,0.003]
[1737966405618,0.201357,99371.0,99369.0,0.002]
[1737966405824,0.201357,99371.0,99369.0,0.003]
[1737966406023,0.201357,99371.0,99369.0,0.001]
[1737966406321,0.201357,99371.0,99369.0,0.002]
[1737966406721,0.201357,99371.0,99369.0,0.001]
[1737966407316,0.02433909,99371.0,99367.0,0.3608]
[1737966407514,0.201358,99370.0,99369.0,0.001]
[1737966407913,0.47585261,99373.0,99361.0,0.00015094]
[1737966408116,0.47585261,99373.0,99358.0,0.17890317]
[1737966408117,0.20138,99359.0,99358.0,0.12915825]
[1737966408521,0.20138,99359.0,99358.0,0.08615825]
[1737966408721,1.69138,99359.0,99358.0,0.08615825]
[1737966408920,1.69138,99359.0,99358.0,0.06829825]
[1737966409619,1.71517771,99359.0,99358.0,0.06829825]
[1737966410021,1.71517771,99359.0,99358.0,0.06929825]
[1737966410222,1.71517771,99359.0,99358.0,0.07129825]
[1737966410725,1.71517771,99359.0,99358.0,0.003]